bitfinex-derivatives/quotes_ETHF0:USTF0_20241008
["timestamp","ask_amount","ask_price","bid_price","bid_amount"]
[1728355893028,0.416,2435.1,2434.8,6.82861]
[1728355893224,0.41079,2434.9,2434.8,6.82861]
[1728355893435,0.41079,2434.9,2434.8,3.2078]
[1728355893732,0.41079,2435.0,2434.9,0.41079]
[1728355894134,0.41079,2435.0,2434.8,3.6186]
[1728355894333,0.41079,2435.0,2434.9,3.21]
[1728355894534,0.41079,2435.0,2434.9,3.62079]
[1728355895034,0.8068,2435.3,2434.9,3.21]
[1728355895233,0.4193,2435.4,2435.2,3.21]
[1728355895431,0.4193,2435.4,2435.3,0.41072]
[1728355896234,0.41067,2435.7,2435.4,0.4107]
[1728355896427,0.41067,2435.7,2435.5,3.21]
[1728355896428,0.41068,2435.6,2435.5,3.21]
[1728355896631,0.4193,2435.7,2435.5,3.21]
[1728355896829,0.82997,2435.7,2435.5,3.21]
[1728355897428,0.4193,2435.7,2435.5,3.21]
[1728355897631,0.41067,2435.6,2435.5,3.21]
[1728355897936,0.4193,2435.7,2435.5,3.62068]
[1728355897937,0.82996,2435.7,2435.5,3.62068]
[1728355898338,0.4193,2435.7,2435.6,0.41067]
[1728355900134,0.82996,2435.7,2435.6,0.41067]
[1728355900336,0.4193,2435.7,2435.6,0.41067]
[1728355900638,0.82996,2435.7,2435.6,0.41067]
[1728355901635,0.4193,2435.7,2435.6,0.41067]
[1728355902434,0.4006,2435.9,2435.5,3.21]
[1728355902630,0.81123,2435.9,2435.7,6.4178]
[1728355902830,0.81123,2435.9,2435.8,0.41064]
[1728355903135,0.41064,2435.8,2435.7,6.82845]
[1728355903737,0.81124,2435.9,2435.7,6.82845]
[1728355903928,0.4126,2436.0,2435.9,0.41062]
[1728355904131,0.82321,2436.0,2435.9,3.62062]
[1728355904331,0.4126,2436.0,2435.9,3.62062]
[1728355904640,0.82321,2436.0,2435.9,3.21]
[1728355904828,0.41062,2435.9,2435.8,3.21]
[1728355905028,0.41062,2435.9,2435.8,3.62064]
[1728355905230,0.41062,2435.9,2435.8,3.21]
[1728355909336,0.41062,2435.9,2435.8,3.62064]
[1728355910340,0.41062,2435.9,2435.8,3.21]
[1728355910534,0.82322,2436.0,2435.8,3.62062]
[1728355910742,0.41062,2435.9,2435.8,3.62062]
[1728355910948,0.41062,2435.9,2435.8,3.21]
[1728355911637,0.41062,2435.9,2435.8,3.62064]
[1728355912038,0.41062,2435.9,2435.8,3.21]
[1728355912440,0.41062,2435.9,2435.8,3.62064]
[1728355913450,0.41062,2435.9,2435.8,3.21]
[1728355914545,0.41062,2435.9,2435.8,3.62064]
[1728355914751,0.41062,2435.9,2435.8,3.21]
[1728355915350,0.41062,2435.9,2435.8,3.62063]
[1728355915950,0.41062,2435.9,2435.8,3.21]
[1728355916345,0.82322,2436.0,2435.9,0.41062]
[1728355919049,0.41062,2435.9,2435.8,3.62063]
[1728355919247,0.82322,2436.0,2435.9,0.41062]
[1728355920650,0.82321,2436.0,2435.9,0.41062]
[1728355920850,0.4126,2436.0,2435.9,3.62062]
[1728355921053,3.2078,2437.0,2435.9,16.5248]
[1728355921245,0.7933,2436.8,2436.7,3.62049]
[1728355921550,0.3867,2436.8,2436.7,3.62049]
[1728355922553,0.3867,2436.8,2436.7,1.89049]
[1728355924445,0.4149,2436.9,2436.7,3.61049]
[1728355924646,0.81701,2437.2,2437.1,0.41042]
[1728355924647,0.4066,2437.2,2437.1,0.41042]
[1728355924849,1.2081,2437.2,2437.1,0.41042]
[1728355925255,0.8015,2437.2,2437.1,0.41042]
[1728355926751,0.416,2437.5,2437.1,3.2]
[1728355926948,0.416,2437.5,2437.3,3.2]
[1728355927155,0.41037,2437.5,2437.3,3.61038]
[1728355927750,0.7788,2437.6,2437.3,3.2]
[1728355928054,0.41037,2437.4,2437.3,3.2]
[1728355928259,0.41039,2437.3,2437.2,3.2078]
[1728355928449,0.4135,2437.3,2436.9,3.3038]
[1728355928646,0.4135,2437.3,2436.9,3.2078]
[1728355928846,0.41043,2437.1,2436.9,3.61825]
[1728355929053,0.4104,2437.2,2436.9,3.61825]
[1728355929256,0.41044,2437.0,2436.9,3.2078]
[1728355930245,0.8196,2437.1,2436.4,6.5038]
[1728355930566,0.41046,2436.9,2436.7,0.41049]
[1728355930857,0.8196,2437.1,2436.6,3.2]
[1728355931053,0.41049,2436.7,2436.6,3.2]
[1728355931455,0.41049,2436.7,2436.5,7.397]
[1728355931649,0.4027,2436.6,2436.5,7.80751]
[1728355932553,0.82398,2436.8,2436.6,0.41049]
[1728355932759,0.82398,2436.8,2436.7,3.2]
[1728355933546,0.4027,2437.0,2436.7,3.2]
[1728355933547,0.81315,2437.0,2436.8,0.41046]
[1728355934358,0.41046,2436.9,2436.7,3.61048]
[1728355934955,0.41046,2436.9,2436.8,0.41047]
[1728355935259,0.41046,2436.9,2436.7,3.61048]
[1728355935455,0.4027,2437.0,2436.8,0.41046]
[1728355935456,0.81314,2437.0,2436.8,0.41046]
[1728355936250,0.41046,2436.9,2436.7,3.61047]
[1728355936458,0.4027,2437.0,2436.7,3.2]
[1728355936654,0.4027,2437.0,2436.5,3.2]
[1728355936952,0.41048,2436.8,2436.6,0.4105]
[1728355937857,0.4027,2437.0,2436.6,0.4105]
[1728355938165,0.41048,2436.8,2436.6,0.4105]
[1728355938464,0.4027,2437.0,2436.6,0.4105]
[1728355939361,0.4027,2437.0,2436.5,3.2]
[1728355939362,0.41046,2436.9,2436.7,0.41048]
[1728355939568,0.41046,2436.9,2436.8,0.41047]
[1728355939952,0.41046,2436.9,2436.7,0.41048]
[1728355940256,1.02581,2437.7,2436.7,6.4078]
[1728355940456,1.2255,2437.6,2437.3,0.41038]
[1728355941259,0.41038,2437.4,2437.2,3.6104]
[1728355943264,1.2255,2437.6,2437.2,3.6104]
[1728355943561,0.41038,2437.4,2437.2,0.41039]
[1728355943864,0.41038,2437.4,2437.0,6.5038]
[1728355944164,0.41038,2437.4,2437.2,0.4104]
[1728355944567,0.41038,2437.4,2437.3,0.41039]
[1728355945161,2.25137,2437.6,2437.0,6.4078]
[1728355945562,0.41038,2437.4,2437.0,6.4078]
[1728355945959,0.41038,2437.4,2437.3,0.41039]
[1728355946359,0.41038,2437.4,2437.0,6.4078]
[1728355946360,0.41039,2437.3,2437.2,0.4104]
[1728355946568,0.41041,2437.2,2437.1,0.41041]
[1728355946766,0.802,2437.2,2437.1,0.41041]
[1728355948058,1.21241,2437.2,2437.1,0.41042]
[1728355948267,0.802,2437.2,2437.1,0.41042]
[1728355948670,0.408,2437.2,2437.1,0.41042]
[1728355949261,0.80438,2437.4,2437.3,0.41039]
[1728355949463,0.41039,2437.3,2437.2,0.4104]
[1728355950276,0.80046,2437.5,2437.4,0.41037]
[1728355950767,0.39,2437.7,2437.5,0.41035]
[1728355950974,0.39,2437.7,2437.6,0.41034]
[1728355952867,0.39,2437.7,2437.4,3.2]
[1728355953177,0.39,2437.7,2437.4,0.41036]
[1728355953178,0.41034,2437.6,2437.4,0.41036]
[1728355953478,0.404,2437.5,2437.4,0.41036]
[1728355957282,0.41037,2437.4,2437.3,0.41038]
[1728355957571,0.83337,2437.4,2437.3,0.41039]
[1728355957777,0.41039,2437.3,2437.0,3.2]
[1728355958077,0.83729,2437.3,2437.1,0.41042]
[1728355958277,0.83729,2437.3,2437.2,0.4104]
[1728355958472,0.83729,2437.3,2437.0,6.4078]
[1728355958473,0.41041,2437.2,2437.1,0.41041]
[1728355958871,0.41041,2437.2,2436.9,0.41044]
[1728355958872,4.1032,2437.2,2436.9,0.41044]
[1728355959072,0.81603,2437.1,2437.0,0.41044]
[1728355959379,0.41044,2437.0,2436.9,0.41045]
[1728355959673,0.83314,2437.0,2436.9,0.41045]
[1728355959873,0.83314,2437.0,2436.9,0.41046]
[1728355960473,0.4227,2437.0,2436.6,7.2325]
[1728355960678,0.4239,2436.9,2436.8,0.41046]
[1728355960876,0.83436,2436.9,2436.8,0.41046]
[1728355961281,0.4239,2436.9,2436.8,0.41046]
[1728355961670,0.4056,2437.1,2436.8,3.2]
[1728355961980,0.4056,2437.1,2437.0,0.41044]
[1728355965479,0.4037,2437.4,2437.0,3.6101]
[1728355965681,0.41039,2437.3,2437.2,3.6182]
[1728355967281,0.4037,2437.4,2437.2,3.2078]
[1728355967481,0.41039,2437.3,2437.2,3.6182]
[1728355968683,0.81408,2437.4,2437.2,3.6182]
[1728355969088,0.81408,2437.4,2437.3,0.41039]
[1728355974395,0.41039,2437.3,2437.2,3.61819]
[1728355974596,0.81409,2437.4,2437.3,0.41039]
[1728355975091,0.41039,2437.3,2437.2,3.61819]
[1728355975590,1.84587,2437.6,2437.2,3.61819]
[1728355975591,0.82,2437.6,2437.5,0.41035]
[1728355975790,0.4021,2437.7,2437.5,6.4078]
[1728355975986,0.4021,2437.7,2437.6,0.41034]
[1728355977187,0.4121,2437.8,2437.6,4.1024]
[1728355977397,0.4121,2437.8,2437.7,0.41032]
[1728355977696,0.8224,2437.8,2437.7,0.41032]
[1728355977890,0.4121,2437.8,2437.7,0.41032]
[1728355979296,0.7929,2438.0,2437.9,0.41029]
[1728355979494,0.3979,2438.0,2437.9,0.41029]
[1728355980297,0.3979,2438.0,2437.9,3.61029]
[1728355981198,0.3979,2438.0,2437.9,0.41029]
[1728355981395,0.41029,2437.9,2437.8,0.41029]
[1728355981597,0.3979,2438.0,2437.7,3.2]
[1728355981798,0.41027,2438.0,2437.9,0.41027]
[1728355985197,1.81441,2438.2,2437.7,3.2]
[1728355985398,0.41028,2438.0,2437.9,0.41028]
[1728355985601,1.02564,2438.1,2437.8,0.41029]
[1728355985602,0.41029,2437.9,2437.8,0.41029]
[1728355986704,0.41028,2438.0,2437.9,0.41028]
[1728355987106,0.41027,2438.1,2438.0,0.41027]
[1728355987513,0.41028,2438.0,2437.9,0.41028]
[1728355987809,0.41028,2438.0,2437.9,0.81568]
[1728355988403,0.41028,2438.0,2437.9,0.81569]
[1728355989214,0.41029,2437.9,2437.8,3.6181]
[1728355989509,0.41029,2438.0,2437.9,0.41028]
[1728355990308,0.41029,2437.9,2437.8,3.61809]
[1728355991513,1.02565,2438.1,2437.8,3.2078]
[1728355991822,0.41028,2438.0,2437.9,0.41027]
[1728355992720,0.41029,2437.9,2437.8,3.61809]
[1728355993018,0.41029,2438.0,2437.9,0.41028]
[1728355993314,0.41028,2438.0,2437.9,0.41028]
[1728355994313,1.81441,2438.2,2437.8,3.2078]
[1728355994314,0.41027,2438.1,2438.0,0.41026]
[1728355994716,0.41028,2438.0,2437.9,0.41028]
[1728355995817,0.41026,2438.1,2438.0,0.41026]
[1728355996520,0.7888,2438.2,2437.9,1.48]
[1728355996710,0.41028,2438.0,2437.9,1.89027]
[1728355997416,0.41027,2438.1,2438.0,0.41026]
[1728355998420,0.41027,2438.0,2437.9,1.89027]
[1728355998619,1.02566,2438.1,2437.8,3.2078]
[1728355998826,0.80139,2437.9,2437.8,3.6181]
[1728355999118,0.80139,2437.9,2437.8,5.0981]
[1728355999916,0.3911,2437.9,2437.8,5.0981]
[1728356000209,0.80139,2437.9,2437.8,5.0981]
[1728356002122,0.7888,2438.2,2438.1,0.41025]
[1728356002718,0.4173,2438.3,2438.2,0.41024]
[1728356002916,0.4173,2438.3,2438.2,1.89024]
[1728356006623,0.82752,2438.3,2438.2,1.89024]
[1728356006821,0.4045,2438.4,2438.2,1.48]
[1728356007020,0.4045,2438.4,2438.3,1.89022]
[1728356007326,0.7803,2438.5,2438.4,0.4102]
[1728356007520,1.19049,2438.5,2438.4,0.4102]
[1728356008620,0.41024,2438.2,2438.1,4.6878]
[1728356009024,1.02551,2438.4,2437.8,2.0697]
[1728356009025,0.41029,2437.9,2437.8,2.0697]
[1728356009215,0.41028,2438.0,2437.9,0.41028]
[1728356009420,1.81804,2438.1,2437.8,1.89029]
[1728356009421,0.41029,2437.9,2437.8,1.89029]
[1728356009727,0.82529,2437.9,2437.8,1.89029]
[1728356009923,0.82529,2437.9,2437.8,5.5816]
[1728356010228,0.82529,2437.9,2437.8,0.4103]
[1728356010229,0.8253,2437.9,2437.8,0.4103]
[1728356010523,0.8253,2437.9,2437.8,1.8903]
[1728356011027,1.20266,2438.1,2438.0,0.41027]
[1728356011223,1.20266,2438.1,2438.0,1.89027]
[1728356011424,1.20266,2438.1,2438.0,5.09807]
[1728356011925,1.20266,2438.1,2438.0,4.6878]
[1728356012131,0.7924,2438.1,2438.0,5.09807]
[1728356012324,1.20265,2438.1,2438.0,4.6878]
[1728356012518,0.7924,2438.1,2438.0,5.09807]
[1728356013329,0.3909,2438.1,2438.0,5.09807]
[1728356014526,0.80115,2438.1,2438.0,5.09807]
[1728356016431,0.3909,2438.1,2438.0,5.09807]
[1728356016731,0.41025,2438.2,2438.1,0.41025]
[1728356016933,0.41025,2438.1,2438.0,5.09806]
[1728356017226,1.48,2438.8,2438.0,5.09806]
[1728356017227,0.41018,2438.6,2438.5,0.41018]
[1728356017428,0.80877,2438.6,2438.5,1.89019]
[1728356018131,0.80877,2438.6,2438.5,1.48]
[1728356019942,0.41019,2438.5,2438.4,1.48]
[1728356020248,0.41019,2438.5,2438.4,1.8902]
[1728356021242,0.41019,2438.5,2437.9,0.50629]
[1728356021243,0.41025,2438.1,2437.9,0.50629]
[1728356021447,0.41027,2438.0,2437.8,1.48]
[1728356021637,0.4098,2438.0,2437.9,1.48]
[1728356021947,0.4098,2438.0,2437.9,1.89029]
[1728356023458,0.4098,2438.0,2437.9,1.48]
[1728356023945,0.80353,2438.3,2438.1,0.41025]
[1728356024239,1.58053,2438.3,2438.2,1.48]
[1728356024440,0.41024,2438.2,2438.0,6.81806]
[1728356024646,1.58053,2438.3,2438.0,6.4078]
[1728356024839,1.1703,2438.3,2438.2,0.41024]
[1728356025043,1.58052,2438.3,2438.2,0.41024]
[1728356025342,1.58052,2438.3,2438.1,1.23074]
[1728356025738,1.1703,2438.3,2438.1,1.23074]
[1728356025934,1.1703,2438.3,2438.2,3.2]
[1728356026145,0.7806,2438.3,2438.2,3.61024]
[1728356027546,1.19082,2438.3,2438.2,3.61024]
[1728356027850,0.7806,2438.3,2438.1,0.80824]
[1728356028142,0.7806,2438.3,2438.0,3.2]
[1728356028344,0.41025,2438.2,2438.1,0.41025]
[1728356029038,0.80352,2438.3,2438.2,0.41024]
[1728356029440,0.80352,2438.3,2438.2,4.51184]
[1728356030935,0.80352,2438.3,2438.2,0.41024]
[1728356031242,0.80352,2438.3,2438.2,4.51184]
[1728356031444,0.8213,2438.5,2438.2,7.3016]
[1728356031648,0.8213,2438.5,2438.3,0.3969]
[1728356031949,1.23149,2438.5,2438.4,0.4102]
[1728356033448,0.8213,2438.5,2438.4,0.4102]
[1728356033646,0.8213,2438.5,2438.4,3.6102]
[1728356034251,1.23149,2438.5,2438.4,3.6102]
[1728356035756,0.82989,2438.5,2438.4,3.6102]
[1728356037552,0.4197,2438.5,2438.4,3.6102]
[1728356037750,0.82989,2438.5,2438.4,3.6102]
[1728356037954,0.4197,2438.5,2438.4,3.6102]
[1728356038251,0.82989,2438.5,2438.4,3.6102]
[1728356039644,0.82989,2438.5,2438.4,3.2]
[1728356040254,0.82989,2438.5,2438.4,3.6102]
[1728356040853,0.82989,2438.5,2438.4,3.2]
[1728356041152,0.82989,2438.5,2438.4,3.6102]
[1728356044457,0.82989,2438.5,2438.4,1.8902]
[1728356045554,0.82989,2438.5,2438.4,1.48]
[1728356045751,0.82989,2438.5,2438.4,1.8902]
[1728356047553,5.54599,2438.5,2438.1,0.41025]
[1728356047750,0.41027,2438.1,2438.0,1.89026]
[1728356047952,0.41027,2438.1,2438.0,1.48]
[1728356048661,0.80597,2438.1,2438.0,1.48]
[1728356051352,0.3957,2438.1,2437.7,0.096]
[1728356051660,0.4103,2437.8,2437.7,1.48]
[1728356052050,0.8139,2437.8,2437.7,1.48]
[1728356052449,0.8139,2437.8,2437.7,1.89032]
[1728356052663,0.4036,2437.8,2437.7,1.89032]
[1728356057767,0.4036,2437.8,2437.7,2.28552]
[1728356058264,0.8139,2437.8,2437.6,0.41033]
[1728356058466,0.8139,2437.8,2437.6,1.48]
[1728356058467,0.81102,2437.7,2437.6,1.48]
[1728356058660,0.41034,2437.6,2437.5,0.41034]
[1728356058955,0.81664,2437.6,2437.5,5.09814]
[1728356063960,0.81664,2437.6,2437.5,1.89034]
[1728356068675,0.4007,2437.7,2437.5,1.48]
[1728356068970,0.4007,2437.7,2437.4,3.61816]
[1728356069267,0.4007,2437.7,2437.5,1.89035]
[1728356069268,0.41034,2437.6,2437.5,1.89035]
[1728356070971,0.81104,2437.7,2437.6,0.41034]
[1728356071363,0.4007,2437.7,2437.5,1.48]
[1728356071562,0.41034,2437.6,2437.5,1.89034]
[1728356075072,0.81103,2437.7,2437.6,0.41034]
[1728356075672,0.3927,2437.9,2437.5,1.48]
[1728356075874,3.2078,2438.2,2437.8,0.4103]
[1728356075875,0.41028,2438.0,2437.8,0.4103]
[1728356076074,1.25526,2438.1,2438.0,1.48]
[1728356076276,1.25526,2438.1,2438.0,1.89027]
[1728356077165,1.25526,2438.1,2438.0,1.48]
[1728356078871,1.25526,2438.1,2437.8,3.2078]
[1728356078872,0.41027,2438.0,2437.9,1.48]
[1728356079067,0.41027,2438.0,2437.9,1.89029]
[1728356087277,0.41027,2438.0,2437.9,1.69029]
[1728356087979,0.41027,2438.0,2437.9,2.08409]
[1728356093288,0.41027,2438.0,2437.9,1.28]
[1728356093489,0.41029,2437.9,2437.8,3.2078]
[1728356093789,0.41029,2437.9,2437.8,4.6878]
[1728356093990,0.41033,2437.7,2437.6,1.89033]
[1728356094583,0.82473,2437.7,2437.6,1.48]
[1728356094788,0.41035,2437.6,2437.5,1.89035]
[1728356097495,0.41035,2437.6,2437.5,5.09815]
[1728356099099,0.41035,2437.6,2437.5,1.89035]
[1728356102792,0.41035,2437.6,2437.5,1.48]
[1728356106300,0.41037,2437.4,2437.3,5.50038]
[1728356106606,0.41037,2437.4,2437.3,6.0513271]
[1728356106800,0.41037,2437.4,2437.3,5.09818]
[1728356107002,0.83457,2437.4,2437.3,5.09818]
[1728356108101,0.4242,2437.4,2437.3,5.09818]
[1728356108494,0.41035,2437.6,2437.5,0.41035]
[1728356108701,0.41035,2437.6,2437.5,1.48]
[1728356108902,0.41035,2437.6,2437.5,1.89035]
[1728356109212,0.41035,2437.6,2437.5,1.8999]
[1728356109507,0.41035,2437.6,2437.5,2.31025]
[1728356109808,0.41035,2437.6,2437.5,1.8999]
[1728356110010,0.8358,2437.7,2437.5,1.8999]
[1728356110211,1.24613,2437.7,2437.6,0.41034]
[1728356110406,0.41033,2437.7,2437.6,0.41033]
[1728356110609,1.23843,2437.7,2437.6,0.41033]
[1728356110907,0.41034,2437.6,2437.5,2.31025]
[1728356114711,0.41034,2437.6,2437.5,1.8999]
[1728356114907,0.41034,2437.6,2437.5,1.48]
[1728356115809,0.41034,2437.6,2437.5,1.89035]
[1728356121021,0.8281,2437.7,2437.5,1.48]
[1728356121320,0.4103,2437.8,2437.7,0.41032]
[1728356121525,1.19838,2438.0,2437.9,0.41029]
[1728356121724,0.4103,2437.9,2437.8,0.4103]
[1728356121919,0.4103,2437.8,2437.7,1.89032]
[1728356122124,0.8314,2437.8,2437.7,1.89032]
[1728356122723,0.8314,2437.8,2437.7,5.09812]
[1728356124830,0.8314,2437.8,2437.7,1.89032]
[1728356125021,0.4211,2437.8,2437.7,5.09812]
[1728356125222,0.8314,2437.8,2437.7,5.09812]
[1728356126227,0.8314,2437.8,2437.7,3.2078]
[1728356126429,0.4211,2437.8,2437.6,1.89033]
[1728356126630,0.81432,2437.7,2437.6,1.89033]
[1728356127932,0.4211,2437.8,2437.7,0.41032]
[1728356128126,1.20648,2438.0,2437.9,0.41029]
[1728356128330,1.20648,2438.0,2437.9,1.89029]
[1728356128632,5.30808,2438.0,2437.9,1.89029]
[1728356130126,5.30808,2438.0,2437.9,1.48]
[1728356130829,0.41029,2437.9,2437.8,2.27729]
[1728356135031,0.7962,2438.0,2437.8,1.867]
[1728356135234,1.20648,2438.0,2437.9,1.89029]
[1728356135536,0.81428,2438.0,2437.9,2.30149]
[1728356137333,0.096,2438.8,2437.9,5.9928]
[1728356137541,0.80969,2438.5,2438.4,1.48]
[1728356138033,0.80969,2438.5,2438.4,1.8902]
[1728356138334,0.80969,2438.5,2438.4,1.48]
[1728356138539,0.41019,2438.6,2438.5,0.41018]
[1728356138836,0.41019,2438.6,2438.5,2.3123]
[1728356140029,0.41019,2438.6,2438.5,2.72249]
[1728356140936,1.21076,2438.7,2438.6,0.41017]
[1728356141137,0.81756,2438.7,2438.6,0.41017]
[1728356141338,0.41017,2438.6,2438.5,2.72248]
[1728356141930,0.4074,2438.7,2438.6,0.41017]
[1728356142135,0.81755,2438.7,2438.6,0.41017]
[1728356142335,0.41017,2438.6,2438.5,2.72247]
[1728356143240,0.4074,2438.7,2438.5,2.3123]
[1728356143542,0.81756,2438.7,2438.6,0.41017]
[1728356143840,0.41017,2438.6,2438.5,2.72248]
[1728356145547,0.41017,2438.6,2438.5,2.3123]
[1728356146135,0.41017,2438.6,2438.5,2.72249]
[1728356146839,0.41017,2438.6,2438.5,2.3123]
[1728356147034,0.4074,2438.7,2438.4,1.48]
[1728356147236,0.80329,2438.5,2438.4,1.48]
[1728356147638,0.41013,2438.9,2438.7,0.41014]
[1728356147950,0.41009,2439.1,2438.9,0.41011]
[1728356148249,1.1923,2439.2,2439.0,0.8095]
[1728356148442,1.1923,2439.2,2439.0,2.2895]
[1728356148443,1.60238,2439.2,2439.0,2.2895]
[1728356148641,0.41008,2439.1,2439.0,2.2895]
[1728356148848,0.41008,2439.1,2439.0,1.8794]
[1728356149239,1.60238,2439.2,2439.0,2.2895]
[1728356149538,0.41008,2439.1,2439.0,2.2895]
[1728356150542,1.60238,2439.2,2439.0,2.2895]
[1728356150847,1.60238,2439.2,2439.1,0.41008]
[1728356151438,1.1923,2439.2,2439.1,0.41008]
[1728356151842,1.60238,2439.2,2439.0,2.28949]
[1728356152256,0.41008,2439.1,2439.0,2.28949]
[1728356152551,0.41008,2439.1,2439.0,1.8794]
[1728356153343,1.15693526,2439.6,2439.0,5.9794]
[1728356153551,0.41001,2439.6,2439.5,1.89001]
[1728356154055,0.40999,2439.7,2439.6,0.41]
[1728356154251,1.02493,2439.8,2439.5,1.48]
[1728356154458,0.41,2439.7,2439.5,1.89001]
[1728356154848,0.41,2439.6,2439.5,1.89001]
[1728356155154,0.41,2439.7,2439.5,1.89001]
[1728356155753,0.41,2439.6,2439.5,1.48]
[1728356155953,0.41003,2439.5,2439.4,1.48]
[1728356156147,0.81861,2439.6,2439.4,1.89002]
[1728356156351,0.81861,2439.6,2439.5,0.41002]
[1728356156852,0.81861,2439.6,2439.4,1.89002]
[1728356157445,0.81861,2439.6,2439.5,1.48]
[1728356158055,0.4086,2439.6,2439.5,1.89002]
[1728356158253,1.355,2440.5,2439.5,14.787]
[1728356158254,0.096,2440.5,2439.5,14.787]
[1728356158445,0.096,2440.5,2440.1,1.48]
[1728356158446,2.22217,2440.4,2440.1,1.48]
[1728356158650,0.4099,2440.2,2440.1,1.48]
[1728356160360,0.4099,2440.2,2440.1,1.88992]
[1728356160654,0.4099,2440.2,2440.1,1.48]
[1728356160859,5.5784,2440.2,2439.8,3.3038]
[1728356161047,0.41,2439.6,2439.5,0.096]
[1728356161251,0.41002,2439.5,2439.4,1.89003]
[1728356161447,0.82062,2439.5,2439.4,1.89003]
[1728356161660,0.82062,2439.5,2439.4,1.48]
[1728356162161,0.41003,2439.4,2439.2,0.80236]
[1728356162366,0.83004,2439.4,2439.3,0.41005]
[1728356162751,7.43265,2440.0,2439.2,3.5923]
[1728356162960,0.40999,2439.7,2439.6,0.41]
[1728356163161,0.40997,2439.8,2439.5,3.61001]
[1728356163465,0.4161,2439.6,2439.5,3.61001]
[1728356163760,0.4161,2439.6,2439.5,6.81781]
[1728356164751,0.40997,2439.8,2439.7,0.40998]
[1728356164950,0.4137,2439.9,2439.7,0.40998]
[1728356165155,0.82366,2439.9,2439.7,0.40998]
[1728356165549,0.40997,2439.8,2439.6,3.6273]
[1728356165758,0.40998,2439.7,2439.6,0.4273]
[1728356165960,0.41,2439.6,2439.5,3.61001]
[1728356166164,0.8367,2439.6,2439.5,3.61001]
[1728356166458,3.2078,2440.3,2439.5,16.507]
[1728356166759,0.822,2440.5,2440.2,3.2]
[1728356166958,0.40988,2440.4,2440.2,4.02069]
[1728356167154,0.4267,2440.4,2440.0,4.86893]
[1728356167467,0.40988,2440.3,2440.2,3.60989]
[1728356167663,0.40988,2440.3,2440.2,3.2]
[1728356167860,0.40988,2440.3,2440.0,3.2]
[1728356167861,0.40993,2440.1,2440.0,3.2]
[1728356168062,0.40993,2440.1,2439.9,1.6828]
[1728356168353,0.40989,2440.3,2440.2,0.4099]
[1728356168563,0.40991,2440.2,2440.0,3.2]
[1728356168768,0.40992,2440.1,2440.0,3.2]
[1728356168952,0.83662,2440.1,2440.0,3.2]
[1728356169559,0.40995,2439.9,2439.8,6.4078]
[1728356169755,0.40995,2439.9,2439.8,3.2078]
[1728356169949,1.45152,2440.1,2439.8,3.2078]
[1728356169950,0.4267,2440.1,2439.8,3.2078]
[1728356170161,0.40995,2439.9,2439.8,6.4078]
[1728356170758,0.83645,2439.9,2439.8,3.2078]
[1728356171860,0.83645,2439.9,2439.8,3.61777]
[1728356172059,0.4265,2439.9,2439.8,3.61777]
[1728356173569,0.4267,2440.1,2440.0,0.40993]
[1728356173570,0.40992,2440.1,2440.0,0.40993]
[1728356173768,0.8112,2440.3,2439.9,0.83614]
[1728356173962,0.40993,2440.0,2439.9,0.4262]
[1728356174159,1.02476,2440.2,2439.8,3.61775]
[1728356174160,0.40995,2439.9,2439.8,3.61775]
[1728356174360,0.40995,2439.9,2439.8,3.61777]
[1728356174361,0.4099,2439.9,2439.8,3.61777]
[1728356174561,0.4219,2440.1,2440.0,0.40993]
[1728356174562,0.40992,2440.1,2440.0,0.40993]
[1728356174766,0.8318,2440.2,2439.8,3.2078]
[1728356174959,0.8318,2440.2,2440.1,0.40992]
[1728356175159,0.4099,2440.2,2440.1,0.40992]
[1728356175365,40.8,2441.0,2439.9,0.406]
[1728356175560,0.40986,2440.5,2440.4,0.40987]
[1728356176067,0.40985,2440.6,2440.2,0.8123]
[1728356176270,0.809,2440.7,2440.3,0.4239]
[1728356176465,0.40985,2440.5,2440.3,0.83378]
[1728356177069,0.40985,2440.5,2440.3,0.4239]
[1728356177258,1.21882,2440.7,2440.5,0.40985]
[1728356177871,1.21882,2440.7,2440.4,3.61765]
[1728356178059,0.40984,2440.6,2440.4,3.61765]
[1728356178256,0.809,2440.7,2440.4,3.2078]
[1728356178454,0.40985,2440.5,2440.4,3.2078]
[1728356179058,0.3863,2440.9,2440.4,7.3054]
[1728356179263,0.7718,2440.9,2440.4,3.2078]
[1728356179467,1.18159,2440.9,2440.4,3.2078]
[1728356179665,0.4098,2440.8,2440.6,0.40983]
[1728356180462,0.7718,2440.9,2440.5,0.40984]
[1728356180463,0.40982,2440.7,2440.5,0.40984]
[1728356180863,0.40982,2440.7,2440.6,0.83253]
[1728356181063,0.40982,2440.7,2440.6,0.4227]
[1728356181663,0.40981,2440.8,2440.6,0.83253]
[1728356181969,0.40982,2440.7,2440.6,0.4227]
[1728356182362,0.40982,2440.7,2440.6,0.83253]
[1728356182563,0.40982,2440.7,2440.6,0.4227]
[1728356182760,0.7718,2440.9,2440.6,0.4227]
[1728356182962,0.3855,2440.9,2440.6,0.4227]
[1728356183162,0.79529,2440.9,2440.7,0.80101]